bitfinex/quotes_ETHUSD_20250219
["timestamp","ask_amount","ask_price","bid_price","bid_amount"]
[1739985743264,2.12947807,2714.2,2713.7,3.68498]
[1739985743752,2.12947807,2714.2,2713.8,3.68483]
[1739985746174,5.81381807,2714.2,2713.7,3.68498]
[1739985746371,2.12947807,2714.2,2713.6,3.68511]
[1739985746571,2.12947807,2714.2,2713.8,3.68484]
[1739985747179,5.81379807,2714.2,2713.7,3.68493]
[1739985747346,2.12947807,2714.2,2713.6,3.68511]
[1739985747549,2.12947807,2714.2,2713.8,3.68484]
[1739985749084,2.12947807,2714.2,2713.8,3.68478]
[1739985750071,0.04054325,2714.2,2714.0,3.6845]
[1739985750244,5.36,2714.4,2714.1,3.68446]
[1739985750443,5.36,2714.4,2714.0,3.6845]
[1739985750775,0.04037262,2714.3,2714.1,3.68445]
[1739985750968,0.04037262,2714.3,2713.9,3.68465]
[1739985751171,0.7598,2714.2,2713.7,0.7731]
[1739985751369,0.80017109,2714.2,2713.7,4.45807]
[1739985751668,0.80017109,2714.2,2713.5,0.7697]
[1739985751874,0.80017109,2714.2,2713.7,3.68492]
[1739985752071,0.80017109,2714.2,2713.8,3.68486]
[1739985752275,1.87543773,2714.2,2713.8,3.68486]
[1739985752480,1.87543773,2714.2,2713.5,0.7697]
[1739985752851,1.87543773,2714.2,2713.7,3.6849]
[1739985755202,1.87543773,2714.2,2713.8,3.68485]
[1739985755404,5.55977773,2714.2,2713.8,3.68485]
[1739985756300,5.55977773,2714.2,2713.6,3.68501]
[1739985756690,0.8016,2713.8,2713.2,0.7952]
[1739985756880,0.0397913,2713.7,2713.3,3.68548]
[1739985757282,0.03966056,2713.6,2713.3,3.68548]
[1739985757483,4.48649,2713.8,2713.2,3.68567]
[1739985757682,0.03975439,2713.7,2713.2,3.68568]
[1739985757882,0.03975439,2713.7,2713.3,3.68551]
[1739985758084,2.10056749,2713.8,2713.3,3.68551]
[1739985758287,0.03975439,2713.7,2713.3,3.68551]
[1739985758580,2.10056749,2713.8,2713.2,3.68568]
[1739985758581,0.7592,2713.6,2713.2,3.68567]
[1739985758787,0.79886056,2713.6,2713.2,3.68567]
[1739985759109,0.79886056,2713.6,2713.3,3.68547]
[1739985759277,0.79886056,2713.6,2713.4,3.68541]
[1739985759477,0.79886056,2713.6,2713.3,3.68552]
[1739985759866,0.79886056,2713.6,2713.3,7.37097]
[1739985760066,0.79886056,2713.6,2713.4,3.68538]
[1739985761602,0.79886056,2713.6,2713.3,3.68545]
[1739985762008,0.79886056,2713.6,2713.4,3.68533]
[1739985762724,0.79886056,2713.6,2713.1,0.27226963]
[1739985762903,0.79886056,2713.6,2713.3,3.68546]
[1739985763284,0.79886056,2713.6,2713.4,3.68539]
[1739985763621,3.68542,2713.4,2712.8,3.68616]
[1739985763822,0.8217,2713.3,2712.6,0.8076]
[1739985764029,0.86030027,2713.3,2712.9,3.68608]
[1739985765826,3.68576,2713.2,2712.6,4.49402]
[1739985766123,0.03821412,2713.1,2712.6,4.49402]
[1739985766324,0.03821412,2713.1,2712.7,3.68634]
[1739985766882,0.03821412,2713.1,2712.6,0.8076]
[1739985767327,7.65043494,2713.3,2712.7,3.68629]
[1739985767720,3.68571,2713.2,2712.7,3.68629]
[1739985767901,1.1719095,2713.2,2712.6,0.8076]
[1739985768229,0.8167,2713.1,2712.6,3.68642]
[1739985768588,0.03784329,2713.0,2712.6,3.68642]
[1739985769019,0.03784329,2713.0,2712.7,3.68627]
[1739985769335,0.03784329,2713.0,2712.7,3.68626]
[1739985770125,0.7639,2712.9,2712.5,3.68655]
[1739985770330,0.80164939,2712.9,2712.6,3.68643]
[1739985770626,0.80164939,2712.9,2712.7,3.68635]
[1739985772398,0.80164939,2712.9,2712.6,3.68645]
[1739985772784,1.25039733,2712.9,2712.5,3.68655]
[1739985772983,0.80164939,2712.9,2712.5,3.68655]
[1739985774433,0.80164939,2712.9,2712.6,3.68648]
[1739985774801,0.80164939,2712.9,2712.6,3.68638]
[1739985775323,0.80164939,2712.9,2712.7,3.68633]
[1739985776521,0.80164939,2712.9,2712.5,3.68656]
[1739985776726,0.80164939,2712.9,2712.6,3.68642]
[1739985776928,0.03774939,2712.9,2712.8,3.68622]
[1739985777227,0.8316,2713.2,2712.8,3.68622]
[1739985777398,0.03739247,2712.9,2712.5,3.68654]
[1739985777606,4.51729,2713.2,2712.6,3.68648]
[1739985777816,0.77,2713.0,2712.5,3.68654]
[1739985778026,4.45596,2713.0,2712.5,3.68654]
[1739985778433,0.77,2713.0,2712.6,3.68644]
[1739985779751,0.77,2713.0,2712.6,7.37286]
[1739985779948,0.77,2713.0,2712.6,3.68642]
[1739985780158,0.7543,2712.8,2712.4,0.1466708]
[1739985780311,3.7543,2712.8,2712.4,0.1466708]
[1739985781003,3.7543,2712.8,2712.5,3.68661]
[1739985781004,0.79160767,2712.8,2712.5,3.68661]
[1739985781249,9.29479261,2712.8,2712.4,0.1466708]
[1739985781452,4.51447,2712.7,2712.4,0.1466708]
[1739985781609,1.30176549,2712.6,2712.4,0.1466708]
[1739985782345,3.97128494,2712.5,2712.4,0.1466708]
[1739985782547,7.65791494,2712.5,2712.4,0.1466708]
[1739985784368,7.65791494,2712.5,2712.4,0.1466708]
[1739985785831,8.20791494,2712.5,2712.4,0.1466708]
[1739985786243,16.56791494,2712.5,2712.4,0.1466708]
[1739985788755,9.87473,2712.5,2712.4,0.1466708]
[1739985789162,5.36,2712.5,2712.4,0.1466708]
[1739985789878,11.213448,2712.5,2712.4,0.1466708]
[1739985794484,14.213448,2712.5,2712.4,0.1466708]
[1739985795366,14.763448,2712.5,2712.4,0.1466708]
[1739985795841,15.51105215,2712.5,2712.4,0.1466708]
[1739985796738,14.96105215,2712.5,2712.4,0.1466708]
[1739985797168,9.1778,2712.5,2712.4,0.1466708]
[1739985797382,5.36,2712.5,2712.4,0.1466708]
[1739985797683,6.141,2713.0,2712.4,4.6404408]
[1739985798291,6.141,2713.0,2712.5,3.68662]
[1739985798788,9.82705,2713.0,2712.4,0.9536708]
[1739985798993,9.82705,2713.0,2712.4,4.6404308]
[1739985799303,3.68638,2712.7,2712.4,0.1466708]
[1739985799498,7.58034494,2712.6,2712.4,0.1466708]
[1739985799992,3.89378494,2712.6,2712.4,0.1466708]
[1739985800407,7.58035494,2712.6,2712.4,0.1466708]
[1739985800699,3.68663,2712.5,2712.4,0.1466708]
[1739985801473,4.81330849,2712.5,2712.4,0.1466708]
[1739985802000,1.12667849,2712.5,2712.4,0.1466708]
[1739985802171,7.58028494,2712.6,2712.4,0.1466708]
[1739985802496,3.68663,2712.5,2712.4,0.1466708]
[1739985803880,4.47233,2712.5,2712.4,0.1466708]
[1739985808519,9.83233,2712.5,2712.4,0.1466708]
[1739985809008,5.36,2712.5,2712.4,0.1466708]
[1739985810411,10.38683,2712.5,2712.4,0.1466708]
[1739985813499,5.36,2712.5,2712.4,0.1466708]
[1739985814516,12.85372,2712.8,2712.4,0.1466708]
[1739985814714,9.85369,2712.8,2712.4,0.1466708]
[1739985816214,3.14318494,2712.6,2712.4,0.1466708]
[1739985816712,7.50943,2712.5,2712.4,0.1466708]
[1739985816918,8.94334749,2712.5,2712.4,0.1466708]
[1739985817104,9.49334749,2712.5,2712.4,0.1466708]
[1739985817897,14.85334749,2712.5,2712.4,0.1466708]
[1739985818616,15.57588741,2712.5,2712.4,0.1466708]
[1739985819331,15.57588741,2712.5,2710.7,0.794]
[1739985819332,4.45987,2711.5,2710.7,0.794]
[1739985819484,4.45987,2711.5,2710.2,3.68967]
[1739985819485,3.14318494,2711.5,2711.0,3.68865]
[1739985819819,4.45956,2711.7,2711.0,3.68865]
[1739985819820,5.36,2711.6,2711.1,0.794]
[1739985820006,3.0,2711.6,2711.1,0.794]
[1739985820318,6.83118494,2711.5,2711.1,0.794]
[1739985820523,3.68813,2711.4,2710.9,0.794]
[1739985820943,3.68826,2711.3,2710.9,0.794]
[1739985821856,9.04818,2711.4,2710.9,0.794]
[1739985822008,3.68826,2711.3,2710.6,3.68913]
[1739985822334,0.7718,2711.3,2710.7,4.48298]
[1739985823031,0.7718,2711.3,2710.8,7.37779]
[1739985823204,0.7718,2711.3,2710.8,3.68886]
[1739985823603,0.7718,2711.3,2710.7,0.794]
[1739985823913,0.7718,2711.3,2710.7,4.48306]
[1739985824939,1.56050771,2711.3,2710.7,4.48306]
[1739985825603,1.56050771,2711.3,2710.8,3.68894]
[1739985825947,6.83159494,2711.2,2710.7,0.794]
[1739985826102,3.14318494,2711.2,2710.7,0.794]
[1739985826304,12.19166494,2711.2,2710.7,0.794]
[1739985826505,9.93710243,2711.2,2710.7,4.48308]
[1739985826798,13.62550243,2711.2,2710.7,0.794]
[1739985827733,3.68854,2711.1,2710.5,0.7823]
[1739985827937,3.68874,2711.0,2710.5,0.7823]
[1739985828162,3.14318494,2710.9,2710.5,0.7823]
[1739985829777,4.36237043,2710.9,2710.5,0.7823]
[1739985830265,5.13147043,2710.9,2710.3,0.7741]
[1739985830568,3.68897,2710.8,2710.3,0.7741]
[1739985830731,3.14318494,2710.5,2709.9,0.7883]
[1739985830932,3.14318494,2710.5,2709.9,4.47837]
[1739985831130,3.90778494,2710.5,2709.9,4.47837]
[1739985831335,3.90778494,2710.5,2709.9,4.47838]
[1739985831969,3.90778494,2710.5,2710.0,3.68996]
[1739985832172,5.36,2710.7,2710.3,0.7883]
[1739985832547,9.04911,2710.7,2710.3,0.7883]
[1739985832731,10.92380375,2710.7,2710.0,4.47822]
[1739985832936,10.92380375,2710.7,2710.1,3.68989]
[1739985833434,7.23469375,2710.7,2710.1,3.68983]
[1739985834175,7.23469375,2710.7,2710.1,7.37966]
[1739985834869,7.23469375,2710.7,2709.7,0.1466708]
[1739985834870,5.36,2710.7,2710.4,0.7883]
[1739985835072,5.36,2710.7,2710.4,4.47772]
[1739985835258,3.14318494,2710.8,2710.4,4.47772]
[1739985836184,3.14318494,2710.8,2710.5,3.68933]
[1739985836555,5.36,2710.9,2710.5,3.68933]
[1739985837650,6.83180494,2711.1,2710.5,3.68933]
[1739985837651,8.50318494,2711.1,2710.5,3.68933]
[1739985837851,8.50318494,2711.1,2710.7,3.68896]
[1739985838153,5.36,2711.1,2710.7,3.68896]
[1739985838394,8.50318494,2711.4,2711.0,3.68866]
[1739985838900,5.36,2711.4,2711.0,3.68866]
[1739985839265,5.36,2711.4,2711.0,7.37726]
[1739985839608,5.36,2711.4,2711.0,3.6886]
[1739985839945,0.7727,2711.5,2711.0,3.6886]
[1739985839946,6.1242,2711.7,2711.4,3.688]
[1739985840149,5.36,2711.7,2711.5,3.68797]
[1739985840395,5.36,2711.7,2711.6,3.68785]
[1739985840602,5.36,2711.7,2711.5,3.68797]
[1739985840603,5.36,2712.2,2711.7,3.68771]
[1739985840805,6.65719749,2712.2,2711.8,0.7707]
[1739985841300,6.65719749,2712.2,2711.7,3.6877]
[1739985841599,6.65719749,2712.2,2711.6,0.8226]
[1739985842402,6.65719749,2712.2,2711.6,4.51037]
[1739985842707,5.36,2712.2,2711.7,3.68763]
[1739985843000,5.36,2712.2,2711.6,0.8226]
[1739985843422,7.64116494,2712.1,2711.4,3.68811]
[1739985843801,11.32845494,2712.1,2711.3,4.49976]
[1739985843983,7.64116494,2712.1,2711.3,0.8115]
[1739985844312,4.98754649,2712.0,2711.3,0.8115]
[1739985844464,3.95398494,2712.1,2711.3,0.8115]
[1739985844671,5.36,2712.2,2711.6,3.68778]
[1739985844920,5.36,2712.2,2711.2,0.8165]
[1739985845079,5.36,2712.2,2711.9,0.8165]
[1739985845623,5.36,2712.2,2712.0,3.68723]
[1739985846123,6.85896039,2712.7,2712.2,3.68701]
[1739985846423,5.36,2712.7,2712.4,3.68665]
[1739985846968,5.36,2712.7,2712.3,8.17781]
[1739985847168,5.36,2712.7,2712.3,4.49091]
[1739985847676,5.36,2712.7,2712.4,3.6867]
[1739985847999,5.36,2712.7,2712.3,0.8041]
[1739985848193,5.36,2712.7,2712.3,8.17788]
[1739985848401,5.36,2712.7,2712.4,3.68663]
[1739985848596,5.36,2712.7,2712.3,4.49099]
[1739985849381,5.36,2712.7,2712.3,0.8041]
[1739985849693,5.36,2712.7,2712.3,4.49099]
[1739985850217,6.1696,2712.9,2712.3,4.49099]
[1739985850414,7.46948149,2712.9,2712.3,4.49099]
[1739985850570,11.15558149,2712.9,2712.3,4.49099]
[1739985851186,11.15558149,2712.9,2712.3,0.8041]
[1739985851391,3.68623,2712.8,2712.3,0.8041]
[1739985852133,7.46948149,2712.9,2712.3,4.491]
[1739985852439,11.15562149,2712.9,2712.3,0.8041]
[1739985852623,7.46948149,2712.9,2712.3,4.49099]
[1739985853017,7.46948149,2712.9,2712.3,4.49091]
[1739985853438,11.15558149,2712.9,2712.3,8.17773]
[1739985853818,11.15558149,2712.9,2712.3,8.17774]
[1739985854025,11.15558149,2712.9,2712.3,4.49091]
[1739985854228,1.11555815,2712.8,2712.3,0.8041]
[1739985854521,4.80184815,2712.8,2712.3,0.8041]
[1739985855050,1.11555815,2712.8,2712.3,4.49098]
[1739985855552,1.11555815,2712.8,2712.3,8.1778]
[1739985855701,1.11555815,2712.8,2712.4,3.68666]
[1739985855906,5.36,2712.9,2712.6,3.68643]
[1739985856102,5.36,2713.2,2712.7,0.7673]
[1739985857108,5.36,2713.3,2712.8,3.68616]
[1739985857313,5.36,2713.5,2713.0,3.68582]
[1739985857611,5.36,2713.5,2713.1,3.68574]
[1739985857831,5.36,2713.5,2713.1,7.37147]
[1739985858120,5.36,2713.5,2713.2,3.68568]
[1739985858532,5.36,2713.5,2713.3,3.68554]
[1739985858725,5.36,2713.9,2713.4,0.7535]
[1739985858943,0.85031849,2713.8,2713.4,0.7535]
[1739985859841,4.53520849,2713.8,2713.4,0.7535]
[1739985860229,0.85031849,2713.8,2713.4,0.7535]
[1739985861359,4.53525849,2713.8,2713.4,0.7535]
[1739985861712,3.68521,2713.6,2712.8,10.37223]
[1739985861929,4.45438,2713.4,2712.9,0.8321]
[1739985862230,6.1289,2713.4,2712.6,0.8321]
[1739985862567,3.14318494,2713.2,2712.6,4.51857]
[1739985863529,6.82891494,2713.2,2712.6,4.51857]
[1739985864454,3.68561,2713.3,2712.7,0.8163]
[1739985864637,4.958795,2713.2,2712.7,0.8163]
[1739985866030,3.68582,2713.1,2712.7,0.8163]
[1739985866230,4.958865,2713.2,2712.7,0.8163]
[1739985867059,5.36,2713.4,2712.8,3.68622]
[1739985867262,0.8005,2713.3,2712.7,0.8163]
[1739985867566,3.68605,2713.0,2712.4,0.7644]
[1739985867914,3.68604,2713.0,2712.4,0.7644]
[1739985868146,0.7861,2712.8,2712.0,3.68721]
[1739985868353,0.7861,2712.8,2712.1,0.8303]
[1739985868551,3.68682,2712.4,2712.1,0.8303]
[1739985868716,3.68682,2712.4,2711.8,0.8303]
[1739985868915,7.63289494,2712.3,2711.8,0.8303]
[1739985869147,8.76485543,2712.3,2711.8,0.8303]
[1739985869330,1.13196049,2712.3,2711.8,4.51785]
[1739985869558,0.7865,2712.5,2711.8,4.51785]
[1739985869987,0.7865,2712.5,2711.9,3.68739]
[1739985870673,3.14318494,2712.6,2712.1,0.7891]
[1739985871004,4.50896,2712.4,2711.7,0.7869]
[1739985871291,3.68692,2712.3,2711.7,0.7869]
[1739985871791,3.96276094,2712.3,2711.7,4.47458]
[1739985872010,0.8221,2712.4,2711.8,3.68755]
[1739985872192,3.0,2712.5,2711.9,7.37479]
[1739985872493,3.14318494,2712.6,2712.0,0.7852]
[1739985872994,6.82971494,2712.6,2712.0,0.7852]
[1739985873144,8.49643843,2712.6,2712.0,0.7852]
[1739985873345,3.68663,2712.5,2712.0,0.7852]
[1739985873888,4.80990843,2712.6,2711.7,0.7883]
[1739985873889,3.14318494,2712.3,2711.7,0.7883]
[1739985874055,4.45791,2712.2,2711.7,0.7883]
[1739985874263,0.7708,2712.2,2711.7,0.7883]
[1739985874463,1.78680686,2712.2,2711.7,4.476]
[1739985875208,5.47384686,2712.2,2711.7,0.7883]
[1739985875907,1.78680686,2712.2,2711.7,0.7883]
[1739985876061,3.68757,2711.9,2711.3,0.7687]
[1739985876260,3.68765,2711.8,2711.3,0.7687]
[1739985876560,9.04757,2711.9,2711.3,0.7687]
[1739985877306,5.36,2711.9,2711.4,3.68801]
[1739985877675,5.36,2711.9,2711.3,4.45687]
[1739985877879,5.36,2711.9,2711.3,8.14506]
[1739985878325,9.04747,2711.9,2711.3,4.45687]
[1739985878470,10.63526149,2711.9,2711.3,0.7687]
[1739985878890,3.68773,2711.7,2711.3,0.7687]
[1739985879170,3.68773,2711.7,2711.0,0.807]
[1739985879171,3.68795,2711.6,2711.0,0.807]
[1739985879387,3.68795,2711.6,2711.0,4.49564]
[1739985880322,7.59601494,2711.7,2711.0,4.49564]
[1739985880482,3.90828494,2711.7,2711.1,3.68852]
[1739985880682,7.59606494,2711.7,2711.1,3.68852]
[1739985880881,14.17136228,2711.7,2711.1,3.68852]
[1739985881083,17.85918228,2711.7,2711.1,3.68852]
[1739985882692,3.68786,2711.6,2711.1,3.68852]
[1739985882886,3.68786,2711.6,2711.0,0.807]
[1739985882887,3.68803,2711.5,2711.0,0.807]
[1739985883209,14.17137228,2711.7,2711.0,4.49559]
[1739985883790,10.48358228,2711.7,2711.1,3.68853]
[1739985884028,10.48358228,2711.7,2711.2,3.68838]
[1739985884439,14.17132228,2711.7,2711.2,3.68838]
[1739985884669,5.36,2711.7,2711.3,0.805]
[1739985885375,5.36,2711.7,2711.4,3.68809]
[1739985885549,5.36,2711.7,2711.3,0.805]
[1739985885748,9.04745,2711.9,2711.3,0.805]
[1739985885953,6.83085494,2711.8,2711.3,0.805]
[1739985886357,3.14318494,2711.8,2711.3,0.805]
[1739985886566,3.14318494,2711.8,2711.3,4.49325]
[1739985886882,3.14318494,2711.8,2711.4,3.68811]
[1739985887062,9.04747,2711.9,2711.3,4.49325]
[1739985887268,5.36,2711.9,2711.3,4.4932]
[1739985887565,5.36,2711.9,2711.4,3.68801]
[1739985887760,5.36,2711.9,2711.3,4.9425]
[1739985887981,9.04746,2711.9,2711.3,4.9425]
[1739985888183,9.04746,2711.9,2711.3,1.25432]
[1739985888400,5.36,2711.9,2711.3,4.49316]
[1739985889076,5.36,2711.9,2711.3,0.805]
[1739985889389,5.36,2711.9,2711.4,3.68812]
[1739985890786,9.04751,2711.9,2711.3,0.805]
[1739985891000,3.68767,2711.8,2711.3,0.805]
[1739985891210,3.68785,2711.6,2711.1,0.7569]
[1739985891762,9.04785,2711.6,2711.1,0.7569]
[1739985892305,5.36,2711.6,2711.1,4.44542]
[1739985892663,5.36,2711.6,2711.2,3.68833]
[1739985894184,5.36,2711.6,2711.1,4.44543]
[1739985894705,5.36,2711.6,2711.1,0.7569]
[1739985894877,5.36,2711.6,2711.2,3.68838]
[1739985895077,5.36,2711.6,2711.1,4.44543]
[1739985895284,9.04786,2711.6,2711.1,0.7569]
[1739985895485,10.34270149,2711.6,2710.9,4.50108]
[1739985895801,3.68813,2711.4,2710.8,3.68888]
[1739985896018,3.68813,2711.4,2710.7,4.45557]
[1739985896182,3.68833,2711.3,2710.7,0.7665]
[1739985896514,0.7599,2711.2,2710.6,3.68914]
[1739985896719,0.7599,2711.2,2710.6,3.68912]
[1739985896923,3.90308494,2711.2,2710.7,3.68901]
[1739985897226,0.813,2711.5,2711.1,3.68847]
[1739985897382,0.813,2711.5,2711.0,4.49247]
[1739985898819,0.813,2711.5,2711.0,0.8038]
[1739985898980,0.813,2711.5,2711.0,4.49246]
[1739985899179,0.813,2711.5,2711.0,4.4924]
[1739985899421,0.813,2711.5,2711.0,8.18098]
[1739985899718,0.813,2711.5,2711.0,4.49238]
[1739985899911,0.813,2711.5,2711.1,3.68851]
[1739985900080,0.813,2711.5,2711.0,4.49238]
[1739985900081,0.813,2711.5,2711.0,8.18098]
[1739985900276,0.813,2711.5,2711.0,4.49238]
[1739985900481,0.813,2711.5,2711.0,4.49247]
[1739985900684,0.813,2711.5,2711.0,4.49241]
[1739985900883,4.23823,2711.4,2710.8,4.47142]
[1739985901113,0.55,2711.4,2710.9,3.68874]
[1739985901580,0.55,2711.4,2711.0,3.68865]
[1739985901994,0.55,2711.4,2710.9,3.68874]
[1739985902188,4.23817,2711.4,2710.9,3.68874]
[1739985902388,0.55,2711.4,2710.9,3.68869]
[1739985902607,3.95618494,2711.5,2710.9,4.135819]
[1739985902812,3.95618494,2711.5,2710.8,4.47154]
[1739985902995,3.68865,2711.1,2710.4,3.68946]
[1739985903206,0.8274,2710.9,2710.4,4.45266]
[1739985903415,0.8274,2710.9,2710.4,0.7632]
[1739985903620,0.8274,2710.9,2710.4,4.45268]
[1739985903828,0.8274,2710.9,2710.4,0.7632]
[1739985904032,0.8274,2710.9,2710.4,4.45268]
[1739985904827,0.8274,2710.9,2710.4,0.7632]
[1739985905006,5.022876,2710.9,2710.2,0.7737]
[1739985905329,3.68895,2710.8,2710.2,0.7737]
[1739985905492,1.334006,2710.9,2710.2,4.46342]
[1739985905493,10.382816,2710.9,2710.2,4.46342]
[1739985905692,13.52601094,2710.9,2710.2,0.7737]
[1739985905892,13.52601094,2710.9,2709.9,3.69006]
[1739985905893,3.6891,2710.7,2710.0,3.69003]
[1739985906130,5.04172909,2710.7,2710.0,3.69003]
[1739985906347,0.7716,2710.5,2709.9,4.45056]
[1739985906506,0.7716,2710.5,2710.0,3.69002]
[1739985906715,0.7716,2710.5,2709.9,0.7605]
[1739985906909,0.7716,2710.5,2709.9,4.45066]
[1739985907239,0.7716,2710.5,2710.0,3.68996]
[1739985907743,0.7716,2710.5,2709.9,4.45066]
[1739985907909,0.7716,2710.5,2709.9,8.14076]
[1739985908109,0.7716,2710.5,2709.9,4.45059]
[1739985908506,0.7716,2710.5,2709.9,8.14067]
[1739985908927,0.7716,2710.5,2709.9,4.45058]
[1739985909237,0.7716,2710.5,2709.9,8.14068]
[1739985910033,0.7716,2710.5,2710.0,3.69002]
[1739985910193,0.7716,2710.5,2709.9,4.45058]
[1739985910598,0.7716,2710.5,2710.0,3.68993]
[1739985911453,4.46097,2710.5,2709.9,0.7605]
[1739985911623,6.2615774,2710.5,2709.9,0.7605]
[1739985912242,2.5722074,2710.5,2710.0,3.68996]
[1739985912442,5.36,2710.7,2710.4,3.68937]
[1739985913240,5.36,2710.7,2710.3,0.7708]
[1739985913722,5.36,2710.7,2710.4,3.6894]
[1739985914136,5.36,2710.7,2710.4,3.68941]
[1739985914440,5.36,2710.7,2710.6,3.68922]
[1739985914691,5.36,2711.1,2710.7,3.68908]
[1739985914847,5.36,2711.7,2711.2,3.6883]
[1739985915146,6.1569,2711.8,2711.0,3.68858]
[1739985915305,9.84456,2711.8,2711.0,0.444528]
[1739985915511,6.1569,2711.8,2711.0,4.133088]
[1739985915707,6.1569,2711.8,2711.0,0.444528]
[1739985915943,6.1569,2711.8,2711.6,3.68783]
[1739985916142,0.7931,2712.1,2711.6,3.68783]
[1739985916359,0.7931,2712.1,2711.6,7.37561]
[1739985916659,5.36,2712.4,2711.8,3.6875]
[1739985916660,6.91242738,2712.4,2711.8,3.6875]
[1739985916856,6.91242738,2712.4,2711.8,4.4476]
[1739985917022,7.17806123,2712.4,2711.8,4.4476]
[1739985917623,10.86485123,2712.4,2711.8,0.7601]
[1739985918867,7.17806123,2712.4,2711.8,4.44768]
[1739985919448,6.1725,2712.4,2712.0,3.6873]
[1739985919644,8.36,2712.7,2712.1,3.68707]
[1739985920046,5.36,2712.7,2712.3,3.68689]
[1739985920361,5.36,2712.7,2712.2,3.687]
[1739985920533,5.36,2712.7,2712.2,3.68696]
[1739985921765,5.36,2712.7,2712.3,3.68687]
[1739985921969,5.36,2712.7,2711.9,0.03686702]
[1739985922232,5.36,2712.7,2712.3,4.51471]
[1739985922486,5.36,2712.7,2712.3,4.51477]
[1739985922835,5.36,2712.7,2711.6,8.37]
[1739985922836,1.377,2712.6,2711.7,4.5078]
[1739985923165,3.68665,2712.5,2711.7,4.50773]
[1739985923470,1.377,2712.6,2711.7,0.8201]
[1739985923670,4.23705,2712.2,2711.4,0.8201]
[1739985923871,3.69318494,2712.2,2711.4,0.8201]
[1739985924035,4.14520343,2712.2,2711.5,3.68799]
[1739985924235,0.45201849,2712.2,2711.6,3.68778]
[1739985924463,0.45201849,2712.2,2711.6,7.37556]
[1739985924671,0.45201849,2712.2,2711.4,0.8201]
[1739985924841,0.45201849,2712.2,2711.5,3.68792]
[1739985925178,3.59520343,2712.2,2711.5,3.68792]
[1739985925476,3.59520343,2712.2,2711.7,3.6877]
[1739985926268,0.81091234,2712.1,2711.5,3.6879]
[1739985926488,0.81091234,2712.1,2711.6,3.68778]
[1739985927255,0.7782,2712.0,2711.1,0.804]
[1739985927454,0.7782,2711.7,2710.9,3.6887]
[1739985927658,4.46597,2711.7,2710.9,3.6887]
[1739985927857,4.46597,2711.7,2711.0,3.68858]
[1739985928158,4.46597,2711.7,2710.9,7.37743]
[1739985928524,5.59563649,2711.7,2710.8,0.804]
[1739985928819,5.59563649,2711.7,2711.1,3.68847]
[1739985928820,1.90786649,2711.7,2711.1,3.68847]
[1739985928971,5.59559649,2711.7,2710.9,7.37749]
[1739985929171,5.59559649,2711.7,2710.9,3.68871]
[1739985929172,1.90786649,2711.7,2710.9,3.68871]
[1739985929410,3.68786,2711.6,2710.9,7.37742]
[1739985929618,4.61619765,2711.6,2711.0,3.68865]
[1739985929905,4.61619765,2711.6,2710.9,3.68871]
[1739985930469,4.07152259,2711.6,2710.9,3.68871]
[1739985930772,0.92833765,2711.6,2710.6,3.737871]
[1739985930979,0.92833765,2711.6,2711.2,3.68838]
[1739985931584,0.92833765,2711.6,2711.1,3.68852]
[1739985933071,0.7782,2711.7,2710.9,0.03688491]
[1739985933271,6.1382,2711.7,2711.1,3.68853]
[1739985933784,3.68787,2711.6,2710.7,0.7734]
[1739985933985,3.6884,2711.2,2710.5,3.68926]
[1739985934304,3.6884,2711.2,2710.6,3.68921]
[1739985934305,0.7729,2711.1,2710.6,3.68921]
[1739985934771,6.12672349,2711.1,2710.3,3.68953]
[1739985934972,6.12672349,2711.1,2710.3,3.68952]
[1739985935174,6.12672349,2711.1,2710.4,3.68937]
[1739985935709,6.12672349,2711.1,2710.5,3.68934]
[1739985935912,2.43818349,2711.1,2710.6,3.68921]
[1739985936102,2.43818349,2711.1,2710.8,3.68891]
[1739985936103,0.7729,2711.1,2710.8,3.68891]
[1739985936472,0.7729,2711.1,2710.3,3.7265016]
[1739985936473,0.7729,2711.1,2710.7,3.68907]
[1739985936697,0.7729,2711.1,2710.4,3.68939]
[1739985936900,4.46146,2711.1,2710.5,3.68927]
[1739985937235,0.7729,2711.1,2710.6,3.68909]
[1739985938192,0.7729,2711.1,2710.7,3.68901]
[1739985938810,0.7729,2711.1,2710.6,3.68909]
[1739985938988,0.7729,2711.1,2710.7,3.68907]
[1739985940595,0.7729,2711.1,2710.8,3.68887]
[1739985941004,0.7729,2711.1,2710.8,3.68894]
[1739985941204,0.7729,2711.1,2710.6,3.68913]
[1739985942727,0.7729,2711.1,2710.6,3.68912]
[1739985943134,0.7729,2711.1,2710.2,4.46306]
[1739985943135,3.6887,2711.0,2710.2,4.46306]
[1739985943342,4.48528,2710.9,2710.2,3.68966]
[1739985943509,6.15299649,2710.9,2710.2,3.68966]
[1739985943696,6.15299649,2710.9,2710.3,3.68955]
[1739985945094,3.68895,2710.8,2710.2,3.68966]
[1739985945333,2.46411649,2710.9,2710.2,3.68966]
[1739985945635,0.7964,2710.9,2710.4,3.68947]
[1739985946039,4.48528,2710.9,2710.3,3.68962]
[1739985947836,4.48528,2710.9,2710.4,3.68946]
[1739985948136,13.53421,2710.9,2710.2,3.68966]
[1739985948434,13.53421,2710.9,2710.3,3.6896]
[1739985948646,15.33043276,2710.9,2710.3,3.6896]
[1739985948815,7.95262276,2710.9,2710.4,3.68942]
[1739985949850,7.95262276,2710.9,2710.3,3.6896]
[1739985950051,11.64149276,2710.9,2710.3,3.6896]
[1739985950455,11.64149276,2710.9,2710.1,3.6898]
[1739985950656,15.33040276,2710.9,2710.2,3.68966]